Cogmind - Beta 16 --- EXPLORER MODE // 2025.12.08 @ 13:06:48 Player: K.K.Y. Result: Destroyed by YY-8EW(R) with Subdweller Machine Gun Performance ------------- Evolutions (0) 0 Regions Visited (3) 600 Robots Destroyed (24) 120 Value Destroyed (626) 626 Prototype IDs (12) 240 Alien Tech Used (0) 0 Bonus (0) 0 TOTAL SCORE: 1586 Bonus ------- None Cogmind --------- Core Integrity 0/250 Matter 290/300 Energy 165/170 System Corruption 0% Temperature Cool (6) Movement Flying (200) Ox2 Location -10/Subcaves Parts ------- > --- POWER (1) -------- Makeshift Power Source > --- PROPULSION (2) --- Flight Unit > --- UTILITY (3) ------ Signal Interpreter Targeting Computer Targeting Computer > --- WEAPON (2) ------- Makeshift Hammer Makeshift Axe > --- INVENTORY (5) ---- Huge Storage Unit Battle Cannon Datajack Mining Laser Peak State ------------ > --- POWER ------------ Makeshift Power Source > --- PROPULSION ------- Flight Unit > --- UTILITY ---------- Signal Interpreter Targeting Computer Targeting Computer > --- WEAPON ----------- Heavy Riot Gun Makeshift Hammer > --- INVENTORY -------- Huge Storage Unit Battle Cannon Datajack Mining Laser Makeshift Axe [Rating: 16] Favorites ----------- Power Light Ion Engine Engine Light Ion Engine Propulsion Flight Unit Flight Unit Flight Unit Utility Targeting Computer Device Improved Terrain Scanner Processor Targeting Computer Weapon Light Assault Rifle Energy Gun Small Laser Ballistic Gun Light Assault Rifle Impact Weapon Makeshift Hammer Slashing Weapon Makeshift Axe Build | -11 -10 -10 -10 ------- Run | Yrd Mat Min Sub Slots Evolved 1 | . 1 . . Power . | . . . . Propulsion . | . . . . Utility 1 | . 1 . . Weapon . | . . . . Parts Attached 20 | 2 5 5 8 Power 2 | . 1 . 1 Engine 2 | . 1 . 1 Core . | . . . . Reactor . | . . . . Propulsion 7 | . 1 4 2 Treads . | . . . . Leg . | . . . . Wheel . | . . . . Hover . | . . . . Flight 7 | . 1 4 2 Utility 4 | . 3 . 1 Device 1 | . 1 . . Storage . | . . . . Processor 3 | . 2 . 1 Hackware . | . . . . Protection . | . . . . Artifact . | . . . . Weapon 7 | 2 . 1 4 Energy Gun 2 | 1 . . 1 Energy Cannon . | . . . . Ballistic Gun 3 | 1 . 1 1 Ballistic Cannon . | . . . . Launcher . | . . . . Special Weapon . | . . . . Impact Weapon 1 | . . . 1 Slashing Weapon 1 | . . . 1 Piercing Weapon . | . . . . Special Melee Weapon . | . . . . Unidentified Prototypes . | . . . . Parts Lost 7 | . . . 7 Power 1 | . . . 1 Propulsion 3 | . . . 3 Utility 1 | . . . 1 Weapon 2 | . . . 2 Highest Loss Streak 3 | . . . 3 To Critical Strikes . | . . . . Average Backups 4 | 2 4 5 4 Power . | . . . . Propulsion . | . . . . Utility 1 | 1 1 2 1 Weapon 2 | . 1 2 2 Tool/Special . | . . . . Unused Backups 5 | . . 1 4 Power . | . . . . Propulsion . | . . . . Utility 1 | . . . 1 Weapon 3 | . . 1 2 Tool/Special 1 | . . . 1 Average Slot Usage (%) 79 | . 66 94 80 Engine 6 | . 6 12 4 Flight 15 | . 8 19 17 Device 7 | . 8 12 6 Processor 26 | . 16 25 30 Energy Gun 8 | . 12 12 7 Ballistic Gun 7 | . 12 12 5 Impact Weapon 4 | . . . 7 Peak Build Rating 16 | 2 9 10 16 Average Rating 10 | 1 6 9 12 On Entrance 5 | . 2 9 10 Avg Prop Armor Cover (%) . | . . . . Naked Turns . | . . . . Heaviest Build 11 | 2 6 6 11 Greatest Support 8 | 3 4 8 8 Greatest Overweight (x) 2 | . 1 1 2 Average Overweight (x) . | . . . . Largest Inventory Capacity 5 | 5 5 5 5 Average Capacity 5 | 5 5 5 5 Most Carried 5 | 4 5 5 5 Average Carried 4 | 2 4 5 4 Final Capacity 5 | 5 5 5 5 Final Carried 5 | 4 5 5 4 Class Distribution -------------------- 100% | Hacker-Mutant Dominant Class ---------------- Hacker-Mutant | -10/Materials Hacker-Mutant | -10/Mines Hacker-Mutant | -10/Subcaves Resources | -11 -10 -10 -10 ----------- Run | Yrd Mat Min Sub Matter Collected 569 | 152 148 184 85 Remotely . | . . . . Salvage Created 782 | 40 229 25 488 Parts 44 | 8 10 5 21 Haulers Intercepted 1 | . 1 . . Recyclers Shooed 1 | . 1 . . Parts Field Recycled . | . . . . Retrieved Matter . | . . . . Parts Self-Destructed . | . . . . Prevented . | . . . . Parts Restored . | . . . . Kills | -11 -10 -10 -10 ------- Run | Yrd Mat Min Sub Combat Hostiles Destroyed 19 | . 7 2 10 Melee 3 | . . . 3 Guns 13 | . 7 2 4 Classes Destroyed 7 | 1 3 . 3 Tunneler 2 | 2 . . . Hauler 1 | . 1 . . Turret 2 | . . . 2 Swarmer 7 | . 4 2 1 Grunt 3 | . 3 . . Sentry 1 | . . . 1 Subdweller 8 | . . . 8 Best Kill Streak 6 | 1 6 2 3 Combat Bots Only 6 | . 6 2 3 Max Kills in Single Turn 1 | 1 1 1 1 Gunslinging . | . . . . Exploded . | . . . . Melee 1 | . . . 1 Uniques/NPCs Destroyed . | . . . . Combat | -11 -10 -10 -10 -------- Run | Yrd Mat Min Sub Hostile Shots Fired 163 | . 50 6 107 Missed 67 | . 16 4 47 Hits 96 | . 34 2 60 Projectile 96 | . 34 2 60 Damage Taken 624 | . 216 11 397 Core 255 | . 106 . 149 Absorbed by Shields . | . . . . Ignored by Resistances 414 | . 140 8 266 Core Remaining (%) 100 | 100 . . . Volleys Fired 65 | 2 28 4 31 Largest 2 | 2 2 2 2 Hottest 60 | 60 60 60 60 Shots Fired 114 | 4 56 8 46 Gun 114 | 4 56 8 46 Cannon . | . . . . Launcher . | . . . . Special . | . . . . Kinetic 65 | 2 28 4 31 Thermal 49 | 2 28 4 15 Explosive . | . . . . Electromagnetic . | . . . . Robot Hit Streak 27 | 3 27 4 10 Robot Miss Streak 2 | . 2 1 2 Penetration Max . | . . . . Secondary Targets 4 | . 3 . 1 Max Gunslinging Chain 1 | . 1 . 1 Shots Hit Robots 108 | 3 50 5 50 Core Hits 43 | 2 19 3 19 Critical Kills 1 | . . . 1 Critical Parts Destroyed 2 | . . . 2 Critical Strikes 5 | . . . 5 Destroy 2 | . . . 2 Smash 3 | . . . 3 Melee Attacks 31 | . . . 31 Impact 31 | . . . 31 Slashing . | . . . . Piercing . | . . . . Sneak Attacks 1 | . . . 1 Combat Hostiles 1 | . . . 1 Follow-up Attacks . | . . . . Damage Inflicted 1555 | 32 498 61 964 Guns 936 | 32 498 61 345 Cannons . | . . . . Explosions . | . . . . Melee 619 | . . . 619 Ramming . | . . . . Kinetic 445 | 9 213 15 208 Thermal 491 | 23 285 46 137 Explosive . | . . . . Electromagnetic . | . . . . Impact 619 | . . . 619 Slashing . | . . . . Piercing . | . . . . Highest Corruption . | . . . . Average Corruption . | . . . . Corruption Purged . | . . . . Corruption Blocked . | . . . . Overload Shots . | . . . . Overflow Damage 71 | . . . 71 Projectiles . | . . . . Explosions . | . . . . Melee 71 | . . . 71 Knockbacks 4 | . . . 4 Impact 4 | . . . 4 Kinetic . | . . . . Secondary . | . . . . Self-Inflicted Damage . | . . . . Shots . | . . . . Rammed . | . . . . Targets Rammed . | . . . . Kicked . | . . . . Crushed . | . . . . Highest Temperature 62 | 10 59 62 17 Average Temperature 19 | 7 19 29 7 Received Heat Transfer 498 | . 168 . 330 Siege Activations . | . . . . Martial Activations . | . . . . Shielding Activations . | . . . . Robots Disrupted . | . . . . Combat Hostiles . | . . . . Robots Corrupted 3 | . . . 3 Combat Hostiles 3 | . . . 3 Parts Fried 3 | . . . 3 Impact Corruptions 5 | . . . 5 Robots Melted . | . . . . Combat Hostiles . | . . . . Parts Melted . | . . . . Heat Transferred 1100 | 50 650 100 300 Parts Sabotaged . | . . . . Parts Stolen . | . . . . Parts Stripped . | . . . . Power Chain Reactions . | . . . . Alert | -11 -10 -10 -10 ------- Run | Yrd Mat Min Sub Maximum Alert Level . | . . . . Low Security (%) 100 | 100 100 100 . Level 1 . | . . . . Level 2 . | . . . . Level 3 . | . . . . Level 4 . | . . . . Level 5 . | . . . . High Security . | . . . . Max Security . | . . . . Peak Influence 135 | 5 135 50 . Initial . | . . . . Average 17 | . 28 4 . Influence Increases 406 | 10 191 50 155 Destroy 0b10 Robot/C 260 | . 140 40 80 Destroy 0b10 Robot/NC 15 | 10 5 . . Destroy Leader 42 | . 32 10 . Successful Hack 14 | . 14 . . Lose Combat Pursuer 75 | . . . 75 Influence Decreases 406 | 10 191 50 155 Time Decay 366 | 10 191 50 115 Lost Part 40 | . . . 40 Squads Dispatched . | . . . . Investigation . | . . . . Extermination . | . . . . Reinforcement . | . . . . Assault . | . . . . Garrison . | . . . . Intercept . | . . . . Searches Triggered . | . . . . Construction Impeded . | . . . . Haulers Reinforced . | . . . . Active Scanning Responses . | . . . . Cargo Convoy Interrupts . | . . . . Stealth | -11 -10 -10 -10 --------- Run | Yrd Mat Min Sub Distress Signals 1 | . 1 . . Communications Jammed . | . . . . Distress Signals . | . . . . Times Spotted 30 | . 11 2 17 Peak Tracking Total 7 | . 7 2 5 Tactical Retreats 3 | . . . 3 Traps | -11 -10 -10 -10 ------- Run | Yrd Mat Min Sub Traps Triggered 9 | . 9 . . Indirectly . | . . . . Trap Hack Attempts . | . . . . Triggered . | . . . . Disarmed . | . . . . Reprogrammed . | . . . . Reused . | . . . . Traps Extracted . | . . . . Installed . | . . . . Triggered . | . . . . Machines | -11 -10 -10 -10 ---------- Run | Yrd Mat Min Sub Machines Disabled . | . . . . Max in Single Turn . | . . . . Machines Repaired . | . . . . Machines Dismantled . | . . . . Machines Sabotaged . | . . . . Overloaded Fab Kills . | . . . . Hacking | -11 -10 -10 -10 --------- Run | Yrd Mat Min Sub Machines Accessed 6 | . 5 . 1 Terminals 5 | . 5 . . Fabricators . | . . . . Repair Stations . | . . . . Recycling Units . | . . . . Scanalyzers . | . . . . Garrison Access . | . . . . Total Hacks 8 | . 7 . 1 Successful 7 | . 6 . 1 Failed 1 | . 1 . . Catastrophic . | . . . . Database Lockouts . | . . . . Manual 6 | . 6 . . Terminals 7 | . 7 . . Fabricators . | . . . . Repair Stations . | . . . . Recycling Units . | . . . . Scanalyzers . | . . . . Garrison Access . | . . . . Terminal Hacks 2 | . 1 . 1 Zone Layout 1 | . 1 . . Proto ID Catalog 1 | . . . 1 Fabricator Hacks . | . . . . Repair Station Hacks . | . . . . Recycling Unit Hacks . | . . . . Scanalyzer . | . . . . Garrison Access Hacks . | . . . . Unauthorized Hacks 5 | . 5 . . Terminals 5 | . 5 . . Botnet 5 | . 5 . . Fabricators . | . . . . Repair Stations . | . . . . Recycling Units . | . . . . Scanalyzers . | . . . . Garrison Access . | . . . . Data Cores Recovered . | . . . . Used . | . . . . Hacking Detections . | . . . . Full Trace Events . | . . . . Feedback Events . | . . . . Feedback Blocked . | . . . . Robot Schematics Acquired . | . . . . Robots Built . | . . . . Authchips . | . . . . Time . | . . . . Total Robot Build Rating . | . . . . Part Schematics Acquired . | . . . . Parts Built . | . . . . Authchips . | . . . . Time . | . . . . Total Part Build Rating . | . . . . Part Studies Acquired . | . . . . Parts Repaired . | . . . . Time . | . . . . Parts Recycled . | . . . . Recycled Matter . | . . . . Retrieved Matter . | . . . . Retrieved Components . | . . . . Parts Scanalyzed . | . . . . Part Schematics Acquired . | . . . . Parts Damaged . | . . . . Bothacking | -11 -10 -10 -10 ------------ Run | Yrd Mat Min Sub Used RIF Installer . | . . . . Robots Hacked . | . . . . Non-combat . | . . . . Combat . | . . . . Robot Hacks Applied . | . . . . Relay Couplers Released . | . . . . Fabnet Peak Effective % . | . . . . Robots Rewired . | . . . . Allies Hacked . | . . . . Hacks Repelled . | . . . . Allies | -11 -10 -10 -10 -------- Run | Yrd Mat Min Sub Total Allies . | . . . . Largest Group . | . . . . Highest-Rated Group . | . . . . Highest-Rated Ally . | . . . . Total Orders . | . . . . Ally Attacks . | . . . . Total Damage . | . . . . Kills . | . . . . Allies Corrupted . | . . . . Allies Melted . | . . . . Intel | -11 -10 -10 -10 ------- Run | Yrd Mat Min Sub Active Infowar (turns) 1865 | . 409 407 1049 Terrain 1865 | . 409 407 1049 Robot Analysis Total . | . . . . Derelict Logs Recovered 1 | . . . 1 Drone Launches . | . . . . Drone Recoveries . | . . . . Exploration | -11 -10 -10 -10 ------------- Run | Yrd Mat Min Sub Turns Passed 2883 | 61 559 407 1856 Spaces Moved 2076 | 35 526 535 980 Core 276 | 35 230 . 11 Treads . | . . . . Legs . | . . . . Wheels . | . . . . Hover . | . . . . Flight 1800 | . 296 535 969 Fastest Speed 37 | 50 40 37 37 Average Speed 89 | 50 85 56 111 Slowest Speed 200 | 50 120 120 200 Overloaded Moves . | . . . . Propulsion Burnouts . | . . . . Robots Hopped 1 | . . 1 . Potential Cave-ins . | . . . . Cave-ins Triggered . | . . . . Exploration Rate (%) 66 | 3 95 99 68 Regions Visited 3 Branch Regions 2 Pre-discovered Areas . | . . . . Known Exits Taken 3 | 1 1 1 . Unknown Exits Taken . | . . . . Scrap Searched 16 | . . 1 15 Spaces Dug . | . . . . Terrain Destroyed . | . . . . Melee . | . . . . Projectile . | . . . . AOE . | . . . . Terrain Rammed . | . . . . Walls Destroyed . | . . . . Machines Disabled . | . . . . Actions | -11 -10 -10 -10 --------- Run | Yrd Mat Min Sub Total 2960 | 74 580 635 1671 Wait 738 | 30 4 87 617 Move 2071 | 34 525 532 980 Hop 1 | . . 1 . Pick Up 14 | 6 5 1 2 Fast Attach 19 | . 14 1 4 Attach 9 | 2 4 . 3 Detach . | . . . . Swap 5 | . . 4 1 Drop 7 | . . 5 2 Fire 65 | 2 28 4 31 Melee 31 | . . . 31 Ram . | . . . . Kick . | . . . . Crush . | . . . . Escape Stasis . | . . . . Rewire . | . . . . Trap . | . . . . Miscellaneous . | . . . . Route ------- -11/Scrapyard -10/Materials (discovered 4 exits: *Mat x3 / *Min) -10/Mines (discovered 3 exits: *Mat x2 / *Sub) -10/Subcaves (discovered 2 exits: *Mat / *Rec) History --------- Turn | Location | Event 15 | -11/Scrapyard | Identified exit to Materials 15 | -11/Scrapyard | Discovered exit to Materials (range 15) 62 | -11/Scrapyard | Entered Materials 62 | -10/Materials | Evolved 1 slot: Utility x1 289 | -10/Materials | Identified exit to Materials 289 | -10/Materials | Discovered exit to Materials (range 11) 338 | -10/Materials | Build established: Hacker-Mutant 358 | -10/Materials | Discovered exit to Materials (range 16) 469 | -10/Materials | Discovered exit to Materials (range 16) 591 | -10/Materials | Identified exit to Mines 591 | -10/Materials | Discovered exit to Mines (range 10) 621 | -10/Materials | Entered Mines 715 | -10/Mines | A weapon hastily lodged in a ceiling crevice suddenly fell to the ground 832 | -10/Mines | Found a hidden stash of uninstalled traps 844 | -10/Mines | Deemed a non-threat by the Exiles lab entrance 912 | -10/Mines | Discovered exit to Materials (range 13) 926 | -10/Mines | Found DCF Scrap (12 items) 928 | -10/Mines | Discovered exit to Materials (range 4) 932 | -10/Mines | Received a Rocket Launcher from a helpful Derelict 1019 | -10/Mines | Identified exit to Subcaves 1019 | -10/Mines | Discovered exit to Subcaves (range 5) 1028 | -10/Mines | Entered Subcaves 1032 | -10/Subcaves | A swath of the cavern ceiling suddenly collapsed 1034 | -10/Subcaves | Ambushed by Subdwellers from Twisted Machinery 1103 | -10/Subcaves | Identified exit to Recycling 1103 | -10/Subcaves | Discovered exit to Recycling (range 11) 1106 | -10/Subcaves | Core integrity fell below 50% 1152 | -10/Subcaves | Lost 3 parts (2n1w) 1717 | -10/Subcaves | Learned 2 Materials zone layouts 1781 | -10/Subcaves | Visited 4L-MR0's lab 1863 | -10/Subcaves | Disturbed a concealed Subdweller 2015 | -10/Subcaves | Disturbed a concealed Subdweller 2066 | -10/Subcaves | Shifting Twisted Machinery released Battle Cannon 2079 | -10/Subcaves | Core integrity fell below 20% 2172 | -10/Subcaves | Shifting Twisted Machinery released Mak. Power Source 2280 | -10/Subcaves | Shifting Twisted Machinery released Sub. Machine Gun 2309 | -10/Subcaves | Shifting Twisted Machinery released Mak. System Shield 2382 | -10/Subcaves | Shifting Twisted Machinery released Mak. Hacking Suite 2431 | -10/Subcaves | Shifting Twisted Machinery released Riot Gun 2499 | -10/Subcaves | Identified exit to Materials 2499 | -10/Subcaves | Discovered exit to Materials (range 16) 2828 | -10/Subcaves | A swath of the cavern ceiling suddenly collapsed 2884 | -10/Subcaves | Destroyed by YY-8EW(R) with Subdweller Machine Gun Last Messages --------------- 02281_ 14-J86(R): "LEAVESUB!" 02293_ 14-J86(R) knocked back. 02297_ Destroyed Sub. Optics. 02297_ 14-J86(R) system corrupted by crushing effect. 02299_ Destroyed Sub. Laser. 02299_ 14-J86(R) system corrupted by crushing effect. 02300_ 14-J86(R) system terminally corrupted. 02300_ Sub. Power Source fried. 02301_ Acquired 10 matter. Mak. System Shield falls loose from the Twisted Machinery. Mak. Hacking Suite falls loose from the Twisted Machinery. Riot Gun falls loose from the Twisted Machinery. 02499_ EXIT=FOUND: MATERIALS A swath of the cavern ceiling suddenly collapses. 02880_ Hvy. Riot Gun destroyed. Map ----- +----------------------------------------------------+ | ?????????????????????????????????????????????????? | | ?????????????????????????????????????????????????? | | ?????????????????????????????????????????????????? | | ?????????????????????????????????????????????????? | | ?????????????????????????????????????????????????? | | ?????????????????????????????????????????????????? | | ?????????????????????????????????????????????????? | | ?????????????????????????????????????????????????? | | ?????????????????????????????????????????????????? | | ?????????????????????????????????????????????????? | | ?????????????????????????????????????????????????? | | ?????????????????????????????????????????????????? | | ?????????????????????????????????????????????????? | | ?????????????????????????????????????????????????? | | ????????????????????????????""???????????????????? | | ?????????????????????????? ""#???????????????????? | | ??????????????????????????"" ##??????????????????? | | ????????????????????????#"" ??????????????????? | | ????????????????????????#" ???????????????????? | | ???????????????????????##"" ????????????????????? | | ??????????????????????##"" ????????????????????? | | ??????????????????????# " ?????#???????????????? | | ??????????????????????# R#?### ##??????????????? | | ??????????????????????# ## "" ???????????????? | | ???????????????????????# R# # #????????????????? | | ???????????????????????##@ # #?????????????????? | | ???????????????????????# #?????????????????? | | ???????????????????????# ##?????????????????? | | ???????????????????????# ; #??????????????????? | | ???????????????????????##;; ###??????????????????? | | ????????????????????????## ##????????????????????? | | ???????????????????????##";##????????????????????? | | ???????????????????????#"";;#????????????????????? | | ???????????????????????##"##""#??????????????????? | | ????????????????????????##"####??????????????????? | | ??????????????????????####"###???????????????????? | | ??????????????????????? ##""###?????????????????? | | ??????????????????????? #"##""#?????????????????? | | ???????????????????????? ###""##?????????????????? | | ???????????????????????? #""###??????????????????? | | ???????????????????????###""#????????????????????? | | ???????????????????????##"###????????????????????? | | ???????????????????????###"##???????###??????????? | | ??????????????????????## ""#????? ##?????????? | | ###???????????????????# "#### #?????????? | | # ##?????????????????# #????????? | | # ##?#######???????## %#????????? | | ?# ### ##??##### ###?????????? | | ?# #### ##???????????? | | ?# = ##????????????? | +----------------------------------------------------+ Best States ------------- Heat Dissipation 25 Energy Generation 15 Energy Capacity 170 Matter Stores 300 Matter Capacity 300 Sight Range 16 Terrain Scan Range 16 Terrain Scan Density 10 Resistance: KI 35 Resistance: TH 35 Resistance: EX 35 Resistance: EM 35 Resistance: I 35 Resistance: S 35 Resistance: P 35 Evasion (%) 62 Targeting Accuracy 10 Offensive Hacking 20 Item Schematics ----------------- None Robot Schematics ------------------ None Fabricated ------------ Nothing Repaired ---------- Nothing Studied --------- None Alien Tech Used ----------------- None Achievements -------------- None Challenges ------------ None Game ------ Seed SalvagingNuclearDoublenader Manual? 0 Play Time 00:17:02 Cumulative 176.0 hours Start 2025.12.08 @ 12:28:28 End 2025.12.08 @ 13:06:48 Sessions 1 Manual Loads 0 Difficulty Explorer Special Mode None Game No. 245 Rogue 0 Adventurer 0 Explorer 245 Win Type - Total 0 Types 0/0/0/0/0/0/0/0/0/0 Lore% 70 Gallery% 67 Achievement% 53 Wizard Run 0 Options --------- Layout 1 ASCII 0 Keyboard 0 Movement Mouse Keybinds 0 Fullscreen 1 Font 24/Smallcaps Map View 50x35 Zoom Use 0% Tactical HUD 1 Map Filters NONE Filters NONE Steam 1 RUN: ce9b6a91-8198-4b3f-8d86-699a0596c9fe